[Event "Panchenko Memorial 2019"]
[Site "Chelyabinsk"]
[Date "2019.09.13"]
[Round "5.9"]
[White "Yudin, Sergei"]
[Black "Semenova, Elena"]
[Result "1-0"]
[ECO "A03"]
[WhiteElo "2494"]
[BlackElo "2303"]
[Annotator "ChessBase"]
[PlyCount "51"]
[EventDate "2019.09.09"]
[EventType "swiss"]
[EventCountry "RUS"]
[SourceTitle "playchess.com"]
[Source "ChessBase"]
[SourceQuality "1"]
[TimeControl "5400+30"]

1. f4 {[%emt 0:03:30]} d5 {[%emt 0:00:00]} 2. Nf3 {[%emt 0:00:06]} c5 {[%emt 0:00:00]} 3. g3 {[%emt 0:00:17]} Nc6 {[%emt 0:01:10]} 4. Bg2 {[%emt 0:00:07]} Nf6 {[%emt 0:01:23]} 5. O-O {[%emt 0:00:24]} g6 {[%emt 0:00:17]} 6. Nc3 {[%emt 0:06:28]} Bg7 {[%emt 0:04:28]} 7. Ne5 {[%emt 0:02:22]} Nxe5 {[%emt 0:05:09]} 8. fxe5 {[%emt 0:00:51]} Ne4 {[%emt 0:00:28]} 9. Nxe4 {[%emt 0:01:39]} dxe4 {[%emt 0:00:07]} 10. c3 {[%emt 0:00:03]} O-O {[%emt 0:08:01]} 11. Bxe4 {[%emt 0:01:35]} Bxe5 {[%emt 0:00:39]} 12. d3 {[%emt 0:00:17]} Qc7 {[%emt 0:12:10]} 13. Bf4 {[%emt 0:18:12]} Bg4 {[%emt 0:06:49]} 14. Rf2 {[%emt 0:05:19]} Bxf4 {[%emt 0:06:42]} 15. gxf4 {[%emt 0:00:51]} Rad8 {[%emt 0:00:29]} 16. f5 {[%emt 0:01:59]} Rd6 {[%emt 0:08:03]} 17. Rg2 {[%emt 0:02:40]} Bh5 {[%emt 0:03:52]} 18. Qd2 {[%emt 0:00:56]} Kh8 {[%emt 0:01:07]} 19. Rf1 {[%emt 0:02:21]} gxf5 {[%emt 0:13:41]} 20. Rxf5 {[%emt 0:02:33]} Bg6 {[%emt 0:00:06]} 21. Qh6 {[%emt 0:00:32]} Qd8 {[%emt 0:15:39]} 22. Rh5 {[%emt 0:01:13]} f5 {[%emt 0:00:11]} 23. Bxf5 {[%emt 0:00:21]} Rxf5 {[%emt 0:07:10]} 24. Rxf5 {[%emt 0:00:12]} Kg8 {[%emt 0:00:02]} 25. h4 {[%emt 0:00:28]} Qc8 {[%emt 0:00:35]} 26. Rf3 {[%emt 0:00:40]} 1-0

[Event "Panchenko Memorial 2019"]
[Site "Chelyabinsk"]
[Date "2019.09.13"]
[Round "5.10"]
[White "Garifullina, Leya"]
[Black "Nesterov, Arseniy"]
[Result "0-1"]
[ECO "C60"]
[WhiteElo "2304"]
[BlackElo "2473"]
[Annotator "ChessBase"]
[PlyCount "128"]
[EventDate "2019.09.09"]
[EventType "swiss"]
[EventCountry "RUS"]
[SourceTitle "playchess.com"]
[Source "ChessBase"]
[SourceQuality "1"]
[TimeControl "5400+30"]

1. e4 {[%emt 0:00:00]} e5 {[%emt 0:00:00]} 2. Nf3 {[%emt 0:00:00]} Nc6 {[%emt 0:00:00]} 3. Bb5 {[%emt 0:00:00]} Nge7 {[%emt 0:00:00]} 4. O-O {[%emt 0:00:07]} g6 {[%emt 0:00:47]} 5. c3 {[%emt 0:00:07]} a6 {[%emt 0:00:52]} 6. Ba4 {[%emt 0:00:04]} Bg7 {[%emt 0:00:30]} 7. d4 {[%emt 0:00:07]} exd4 {[%emt 0:00:25]} 8. cxd4 {[%emt 0:00:04]} b5 {[%emt 0:00:04]} 9. Bc2 {[%emt 0:02:42]} d5 {[%emt 0:00:22]} 10. exd5 {[%emt 0:02:07]} Nxd5 {[%emt 0:00:13]} 11. Bg5 {[%emt 0:00:22]} Qd6 {[%emt 0:01:21]} 12. Re1+ {[%emt 0:00:09]} Be6 {[%emt 0:00:04]} 13. Nbd2 {[%emt 0:01:54]} Nxd4 {[%emt 0:08:31]} 14. Ne4 {[%emt 0:06:02]} Qb6 {[%emt 0:01:09]} 15. Nxd4 {[%emt 0:10:10]} Bxd4 {[%emt 0:00:24]} 16. Qf3 {[%emt 0:03:25]} O-O {[%emt 0:01:53]} 17. Bh6 {[%emt 0:00:34]} Bg7 {[%emt 0:15:22]} 18. Bxg7 {[%emt 0:02:17]} Kxg7 {[%emt 0:00:01]} 19. Ng5 {[%emt 0:00:47]} Rae8 {[%emt 0:11:03]} 20. Nxe6+ {[%emt 0:12:50]} fxe6 {[%emt 0:00:06]} 21. Qg3 {[%emt 0:02:08]} Rf6 {[%emt 0:07:14]} 22. Be4 {[%emt 0:03:12]} Ref8 {[%emt 0:02:04]} 23. Bf3 {[%emt 0:00:26]} Nf4 {[%emt 0:02:51]} 24. Rad1 {[%emt 0:02:01]} c5 {[%emt 0:02:39]} 25. Rd7+ {[%emt 0:10:47]} R8f7 {[%emt 0:00:26]} 26. Rxf7+ {[%emt 0:00:59]} Rxf7 {[%emt 0:00:13]} 27. Bg4 {[%emt 0:04:32]} c4 {[%emt 0:06:39]} 28. Qc3+ {[%emt 0:00:55]} Kg8 {[%emt 0:01:03]} 29. Bf3 {[%emt 0:01:59]} Nd3 {[%emt 0:01:51]} 30. Re2 {[%emt 0:00:10]} Qc5 {[%emt 0:07:22]} 31. Re3 {[%emt 0:02:55]} b4 {[%emt 0:03:36]} 32. Qd2 {[%emt 0:02:19]} e5 {[%emt 0:06:31]} 33. h3 {[%emt 0:03:14]} Kg7 {[%emt 0:02:46]} 34. Qc2 {[%emt 0:02:39]} Qd4 {[%emt 0:03:32]} 35. b3 {[%emt 0:02:25]} Qc3 {[%emt 0:02:31]} 36. Qe2 {[%emt 0:03:14]} cxb3 {[%emt 0:04:50]} 37. axb3 {[%emt 0:00:50]} Rd7 {[%emt 0:00:56]} 38. Be4 {[%emt 0:02:54]} Qc1+ {[%emt 0:02:22]} 39. Kh2 {[%emt 0:00:26]} Nc5 {[%emt 0:03:01]} 40. Qg4 {[%emt 0:01:09]} Qd1 {[%emt 0:01:21]} 41. Qg3 {[%emt 0:04:13]} Qd4 {[%emt 0:01:23]} 42. Bf5 {[%emt 0:02:36]} Re7 {[%emt 0:00:08]} 43. h4 {[%emt 0:03:53]} e4 {[%emt 0:01:03]} 44. Bh3 {[%emt 0:00:27]} Nd3 {[%emt 0:00:52]} 45. f4 {[%emt 0:02:06]} Qd6 {[%emt 0:00:54]} 46. h5 {[%emt 0:00:37]} Nxf4 {[%emt 0:00:40]} 47. hxg6 {[%emt 0:00:15]} hxg6 {[%emt 0:00:07]} 48. Bf5 {[%emt 0:00:57]} Qc5 {[%emt 0:01:09]} 49. Qg5 {[%emt 0:04:08]} Qxe3 {[%emt 0:00:40]} 50. Qxe7+ {[%emt 0:00:05]} Kh6 {[%emt 0:00:02]} 51. Bxe4 {[%emt 0:01:40]} Nh5 {[%emt 0:00:52]} 52. Qf8+ {[%emt 0:00:33]} Kg5 {[%emt 0:00:11]} 53. Qe7+ {[%emt 0:00:05]} Nf6 {[%emt 0:00:56]} 54. Qe5+ {[%emt 0:00:29]} Kh6 {[%emt 0:00:03]} 55. Qxf6 {[%emt 0:00:36]} Qxe4 {[%emt 0:00:00]} 56. Qxa6 {[%emt 0:00:21]} Qe5+ {[%emt 0:00:20]} 57. Kh1 {[%emt 0:00:11]} Qh5+ {[%emt 0:00:38]} 58. Kg1 {[%emt 0:00:06]} Qd1+ {[%emt 0:00:20]} 59. Qf1 {[%emt 0:01:26]} Qxb3 {[%emt 0:00:16]} 60. Qf8+ {[%emt 0:00:07]} Kg5 {[%emt 0:00:05]} 61. Qc5+ {[%emt 0:00:37]} Kf6 {[%emt 0:00:50]} 62. g4 {[%emt 0:01:55]} Qg3+ {[%emt 0:00:31]} 63. Kf1 {[%emt 0:00:10]} Qf4+ {[%emt 0:00:03]} 64. Ke1 {[%emt 0:00:06]} Qe5+ 0-1

[Event "Panchenko Memorial 2019"]
[Site "Chelyabinsk"]
[Date "2019.09.14"]
[Round "6.1"]
[White "Volkov, Sergey"]
[Black "Shaposhnikov, Evgeny"]
[Result "1-0"]
[ECO "E15"]
[WhiteElo "2557"]
[BlackElo "2572"]
[Annotator "ChessBase"]
[PlyCount "62"]
[EventDate "2019.09.09"]
[EventType "swiss"]
[EventCountry "RUS"]
[SourceTitle "playchess.com"]
[Source "ChessBase"]
[SourceQuality "1"]
[TimeControl "5400+30"]

1. d4 {[%emt 0:00:00]} Nf6 {[%emt 0:00:00]} 2. c4 {[%emt 0:00:00]} e6 {[%emt 0:00:00]} 3. Nf3 {[%emt 0:00:00]} b6 {[%emt 0:00:00]} 4. g3 {[%emt 0:00:04]} Bb4+ {[%emt 0:00:00]} 5. Bd2 {[%emt 0:00:25]} c5 {[%emt 0:00:12]} 6. Bg2 {[%emt 0:00:34]} Bb7 {[%emt 0:00:02]} 7. Bxb4 {[%emt 0:00:12]} cxb4 {[%emt 0:00:03]} 8. a3 {[%emt 0:00:15]} bxa3 {[%emt 0:00:07]} 9. Nxa3 {[%emt 0:00:05]} O-O {[%emt 0:00:24]} 10. O-O {[%emt 0:00:06]} a5 {[%emt 0:01:22]} 11. Nb5 {[%emt 0:00:35]} Na6 {[%emt 0:01:23]} 12. Nd6 {[%emt 0:01:19]} Bc6 {[%emt 0:00:39]} 13. Nd2 {[%emt 0:08:50]} Bxg2 {[%emt 0:02:04]} 14. Kxg2 {[%emt 0:00:03]} Qc7 {[%emt 0:01:14]} 15. Nb5 {[%emt 0:00:10]} Qc6+ {[%emt 0:00:15]} 16. Kg1 {[%emt 0:00:52]} Nb4 {[%emt 0:01:19]} 17. b3 {[%emt 0:01:27]} d5 {[%emt 0:07:40]} 18. e3 {[%emt 0:02:50]} Rfe8 {[%emt 0:04:12]} 19. Nf3 {[%emt 0:07:39]} Nd7 {[%emt 0:04:20]} 20. Qe2 {[%emt 0:03:46]} e5 {[%emt 0:13:40]} 21. cxd5 {[%emt 0:06:07]} Nxd5 {[%emt 0:00:25]} 22. Qc4 {[%emt 0:00:10]} Rac8 {[%emt 0:03:33]} 23. e4 {[%emt 0:27:45]} N5f6 {[%emt 0:01:46]} 24. Qxc6 {[%emt 0:01:30]} Rxc6 {[%emt 0:00:02]} 25. dxe5 {[%emt 0:00:10]} Nxe5 {[%emt 0:02:53]} 26. Nfd4 {[%emt 0:01:07]} Rc5 {[%emt 0:00:02]} 27. Nd6 {[%emt 0:07:49]} Rd8 {[%emt 0:02:55]} 28. b4 {[%emt 0:00:17]} axb4 {[%emt 0:03:37]} 29. Nb7 {[%emt 0:06:43]} Rxd4 {[%emt 0:05:09]} 30. Ra8+ {[%emt 0:00:44]} Rd8 31. Raa1 Re8 1-0

[Event "Panchenko Memorial 2019"]
[Site "Chelyabinsk"]
[Date "2019.09.14"]
[Round "6.2"]
[White "Sivuk, Vitaly"]
[Black "Badelka, Olga"]
[Result "1-0"]
[ECO "B36"]
[WhiteElo "2559"]
[BlackElo "2399"]
[Annotator "ChessBase"]
[PlyCount "91"]
[EventDate "2019.09.09"]
[EventType "swiss"]
[EventCountry "RUS"]
[SourceTitle "playchess.com"]
[Source "ChessBase"]
[SourceQuality "1"]
[TimeControl "5400+30"]

1. c4 {[%emt 0:00:00]} Nf6 {[%emt 0:00:11]} 2. Nc3 {[%emt 0:00:09]} c5 {[%emt 0:00:56]} 3. Nf3 {[%emt 0:00:13]} Nc6 {[%emt 0:01:25]} 4. d4 {[%emt 0:00:12]} cxd4 {[%emt 0:00:05]} 5. Nxd4 {[%emt 0:00:06]} g6 {[%emt 0:00:30]} 6. e4 {[%emt 0:00:14]} Nxd4 {[%emt 0:03:04]} 7. Qxd4 {[%emt 0:00:09]} d6 {[%emt 0:00:06]} 8. f3 {[%emt 0:00:34]} Bg7 {[%emt 0:00:05]} 9. Be3 {[%emt 0:00:08]} O-O {[%emt 0:00:06]} 10. Qd2 {[%emt 0:00:05]} Bd7 {[%emt 0:09:50]} 11. Be2 {[%emt 0:01:54]} Qa5 {[%emt 0:01:49]} 12. a3 {[%emt 0:06:04]} Rfc8 {[%emt 0:01:14]} 13. b4 {[%emt 0:00:36]} Qd8 {[%emt 0:00:42]} 14. Rc1 {[%emt 0:00:13]} a6 {[%emt 0:17:18]} 15. O-O {[%emt 0:00:54]} Rab8 {[%emt 0:01:56]} 16. Ba7 {[%emt 0:03:18]} Ra8 {[%emt 0:00:06]} 17. Bd4 {[%emt 0:00:08]} Be6 {[%emt 0:10:57]} 18. Na4 {[%emt 0:05:20]} Nd7 {[%emt 0:00:14]} 19. f4 {[%emt 0:02:39]} f6 {[%emt 0:06:23]} 20. Qe3 {[%emt 0:15:33]} Rab8 {[%emt 0:03:09]} 21. Ba7 {[%emt 0:16:19]} Ra8 {[%emt 0:00:04]} 22. Rfd1 {[%emt 0:01:39]} Qe8 {[%emt 0:02:41]} 23. Nb6 {[%emt 0:04:59]} Nxb6 {[%emt 0:00:05]} 24. Bxb6 {[%emt 0:00:05]} Qf7 {[%emt 0:02:36]} 25. c5 {[%emt 0:00:28]} dxc5 {[%emt 0:01:05]} 26. bxc5 {[%emt 0:00:25]} Qe8 {[%emt 0:08:04]} 27. f5 {[%emt 0:07:12]} Bf7 {[%emt 0:05:31]} 28. Bc4 {[%emt 0:02:04]} Bxc4 {[%emt 0:02:50]} 29. Rxc4 {[%emt 0:00:02]} e5 {[%emt 0:00:21]} 30. Rc2 {[%emt 0:07:18]} gxf5 {[%emt 0:07:30]} 31. exf5 {[%emt 0:00:23]} Qf7 {[%emt 0:00:29]} 32. Rcd2 {[%emt 0:00:42]} Re8 {[%emt 0:00:11]} 33. Qe4 {[%emt 0:00:24]} Bh6 {[%emt 0:13:06]} 34. Rd3 {[%emt 0:02:35]} Rac8 {[%emt 0:00:48]} 35. Kh1 {[%emt 0:00:30]} Rc6 {[%emt 0:01:30]} 36. Rd7 {[%emt 0:03:20]} Re7 {[%emt 0:00:02]} 37. Rxb7 {[%emt 0:04:20]} Rxb7 {[%emt 0:00:33]} 38. Qxc6 {[%emt 0:00:07]} Bf8 {[%emt 0:00:32]} 39. a4 {[%emt 0:01:57]} Rb8 {[%emt 0:00:29]} 40. a5 {[%emt 0:00:14]} Qb3 {[%emt 0:00:30]} 41. Qe6+ {[%emt 0:05:08]} Qxe6 {[%emt 0:00:05]} 42. fxe6 {[%emt 0:00:03]} Rc8 {[%emt 0:00:32]} 43. Rd7 {[%emt 0:00:27]} Bxc5 {[%emt 0:00:24]} 44. Bxc5 {[%emt 0:00:37]} Rxc5 {[%emt 0:00:04]} 45. Rd8+ {[%emt 0:00:14]} Kg7 {[%emt 0:00:03]} 46. h3 {[%emt 0:00:27]} 1-0

[Event "Panchenko Memorial 2019"]
[Site "Chelyabinsk"]
[Date "2019.09.14"]
[Round "6.3"]
[White "Zhigalko, Andrey"]
[Black "Nugumanov, Bakhtiyar"]
[Result "1-0"]
[ECO "A21"]
[WhiteElo "2539"]
[BlackElo "2387"]
[Annotator "ChessBase"]
[PlyCount "55"]
[EventDate "2019.09.09"]
[EventType "swiss"]
[EventCountry "RUS"]
[SourceTitle "playchess.com"]
[Source "ChessBase"]
[SourceQuality "1"]
[TimeControl "5400+30"]

1. c4 {[%emt 0:00:00]} e5 {[%emt 0:00:04]} 2. Nc3 {[%emt 0:00:00]} d6 {[%emt 0:00:35]} 3. g3 {[%emt 0:02:52]} f5 {[%emt 0:00:38]} 4. Bg2 {[%emt 0:02:23]} Nf6 {[%emt 0:00:18]} 5. d3 {[%emt 0:02:57]} g6 {[%emt 0:00:17]} 6. Nf3 {[%emt 0:04:33]} Bg7 {[%emt 0:00:14]} 7. O-O {[%emt 0:00:07]} O-O {[%emt 0:02:01]} 8. b4 {[%emt 0:03:35]} Nc6 {[%emt 0:02:14]} 9. b5 {[%emt 0:01:49]} Ne7 {[%emt 0:00:19]} 10. c5 {[%emt 0:22:56]} h6 {[%emt 0:07:27]} 11. Qb3+ {[%emt 0:02:27]} Kh7 {[%emt 0:01:29]} 12. Ba3 {[%emt 0:02:24]} e4 {[%emt 0:08:27]} 13. cxd6 {[%emt 0:08:22]} cxd6 {[%emt 0:00:40]} 14. dxe4 {[%emt 0:07:05]} fxe4 {[%emt 0:00:39]} 15. Nd4 {[%emt 0:00:43]} Ng4 {[%emt 0:09:05]} 16. e3 {[%emt 0:02:29]} Nf5 {[%emt 0:06:30]} 17. Nxe4 {[%emt 0:08:07]} Nxd4 {[%emt 0:01:02]} 18. exd4 {[%emt 0:00:04]} Bxd4 {[%emt 0:02:44]} 19. Rad1 {[%emt 0:01:05]} Qb6 {[%emt 0:03:08]} 20. Rxd4 {[%emt 0:06:37]} Qxd4 {[%emt 0:00:13]} 21. Bb2 {[%emt 0:00:54]} Qb6 {[%emt 0:00:54]} 22. Qc3 {[%emt 0:01:09]} Ne5 {[%emt 0:03:22]} 23. Rd1 {[%emt 0:00:06]} Qxb5 {[%emt 0:15:36]} 24. Rxd6 {[%emt 0:03:57]} Bf5 {[%emt 0:04:49]} 25. Rd5 {[%emt 0:03:53]} Qxd5 {[%emt 0:01:54]} 26. Nf6+ {[%emt 0:00:15]} Rxf6 {[%emt 0:00:01]} 27. Bxd5 {[%emt 0:00:09]} Nd7 {[%emt 0:04:10]} 28. Qe3 {[%emt 0:00:33]} 1-0

[Event "Panchenko Memorial 2019"]
[Site "Chelyabinsk"]
[Date "2019.09.14"]
[Round "6.4"]
[White "Lobanov, Sergei"]
[Black "Radzhabov, Rodion"]
[Result "0-1"]
[ECO "B47"]
[WhiteElo "2515"]
[BlackElo "2384"]
[Annotator "ChessBase"]
[PlyCount "88"]
[EventDate "2019.09.09"]
[EventType "swiss"]
[EventCountry "RUS"]
[SourceTitle "playchess.com"]
[Source "ChessBase"]
[SourceQuality "1"]
[TimeControl "5400+30"]

1. e4 {[%emt 0:00:00]} c5 {[%emt 0:00:00]} 2. Nf3 {[%emt 0:00:00]} Nc6 {[%emt 0:00:00]} 3. d4 {[%emt 0:00:00]} cxd4 {[%emt 0:00:00]} 4. Nxd4 {[%emt 0:00:00]} Qc7 {[%emt 0:00:00]} 5. Nc3 {[%emt 0:00:00]} e6 {[%emt 0:00:04]} 6. g3 {[%emt 0:00:02]} a6 {[%emt 0:00:14]} 7. Bg2 {[%emt 0:00:05]} Nf6 {[%emt 0:00:04]} 8. O-O {[%emt 0:00:07]} Bc5 {[%emt 0:00:03]} 9. Nxc6 {[%emt 0:00:07]} dxc6 {[%emt 0:00:12]} 10. Na4 {[%emt 0:00:04]} Ba7 {[%emt 0:00:05]} 11. c4 {[%emt 0:00:06]} e5 {[%emt 0:00:04]} 12. c5 {[%emt 0:00:10]} Be6 {[%emt 0:00:05]} 13. b4 {[%emt 0:00:05]} Rd8 {[%emt 0:06:27]} 14. Qc2 {[%emt 0:00:07]} O-O {[%emt 0:03:14]} 15. Bb2 {[%emt 0:00:07]} Nd7 {[%emt 0:06:45]} 16. Bc3 {[%emt 0:00:08]} Rfe8 {[%emt 0:03:54]} 17. Nb2 {[%emt 0:00:44]} f6 {[%emt 0:01:18]} 18. Bd2 {[%emt 0:00:04]} Nf8 {[%emt 0:25:57]} 19. Be3 {[%emt 0:01:37]} Qe7 {[%emt 0:07:34]} 20. a4 {[%emt 0:00:42]} Bb8 {[%emt 0:00:35]} 21. Nc4 {[%emt 0:02:31]} Bf7 {[%emt 0:02:34]} 22. Rfd1 {[%emt 0:04:09]} Ne6 {[%emt 0:03:24]} 23. Na5 {[%emt 0:04:55]} Nd4 {[%emt 0:11:37]} 24. Bxd4 {[%emt 0:00:05]} exd4 {[%emt 0:00:05]} 25. Qd3 {[%emt 0:00:30]} g5 {[%emt 0:01:42]} 26. Bh3 {[%emt 0:03:14]} Bg6 {[%emt 0:11:59]} 27. Bf5 {[%emt 0:01:46]} Kg7 {[%emt 0:05:12]} 28. Kf1 {[%emt 0:00:55]} Be5 {[%emt 0:02:33]} 29. Rac1 {[%emt 0:00:45]} Qc7 {[%emt 0:00:49]} 30. Re1 {[%emt 0:00:21]} Bf7 {[%emt 0:01:27]} 31. Kg2 {[%emt 0:00:12]} Re7 {[%emt 0:02:38]} 32. Rf1 {[%emt 0:02:57]} Bg6 {[%emt 0:00:26]} 33. h4 {[%emt 0:02:33]} Bxf5 {[%emt 0:02:07]} 34. exf5 {[%emt 0:00:01]} Qd7 {[%emt 0:00:52]} 35. hxg5 {[%emt 0:01:40]} fxg5 {[%emt 0:00:23]} 36. Nc4 {[%emt 0:00:17]} Qd5+ {[%emt 0:00:53]} 37. f3 {[%emt 0:03:09]} Rde8 {[%emt 0:00:37]} 38. Kh3 {[%emt 0:02:53]} h5 {[%emt 0:00:33]} 39. Rcd1 {[%emt 0:09:40]} g4+ {[%emt 0:01:58]} 40. fxg4 {[%emt 0:00:58]} hxg4+ {[%emt 0:00:06]} 41. Kxg4 {[%emt 0:00:04]} Kf6 {[%emt 0:01:08]} 42. Nxe5 {[%emt 0:00:14]} Rxe5 {[%emt 0:00:06]} 43. Rf3 {[%emt 0:03:14]} Rh8 {[%emt 0:01:02]} 44. Rf4 {[%emt 0:03:26]} Qg2 {[%emt 0:00:08]} 0-1

[Event "Panchenko Memorial 2019"]
[Site "Chelyabinsk"]
[Date "2019.09.14"]
[Round "6.5"]
[White "Tologontegin, Semetey"]
[Black "Yudin, Sergei"]
[Result "1-0"]
[ECO "D00"]
[WhiteElo "2369"]
[BlackElo "2494"]
[Annotator "ChessBase"]
[PlyCount "109"]
[EventDate "2019.09.09"]
[EventType "swiss"]
[EventCountry "RUS"]
[SourceTitle "playchess.com"]
[Source "ChessBase"]
[SourceQuality "1"]
[TimeControl "5400+30"]

1. d4 {[%emt 0:01:28]} d5 {[%emt 0:08:05]} 2. Nc3 {[%emt 0:00:09]} Nf6 {[%emt 0:00:12]} 3. Bf4 {[%emt 0:00:09]} a6 {[%emt 0:02:36]} 4. e3 {[%emt 0:00:43]} e6 {[%emt 0:00:17]} 5. g4 {[%emt 0:00:36]} c5 {[%emt 0:02:34]} 6. g5 {[%emt 0:00:38]} Nfd7 {[%emt 0:00:06]} 7. h4 {[%emt 0:02:03]} Nc6 {[%emt 0:00:56]} 8. Nf3 {[%emt 0:00:25]} cxd4 {[%emt 0:01:38]} 9. exd4 {[%emt 0:00:20]} Nb6 {[%emt 0:06:01]} 10. Qd2 {[%emt 0:28:21]} Bd6 {[%emt 0:02:53]} 11. a3 {[%emt 0:07:57]} Qc7 {[%emt 0:00:42]} 12. Bxd6 {[%emt 0:00:46]} Qxd6 {[%emt 0:00:07]} 13. Qe3 {[%emt 0:00:13]} Bd7 {[%emt 0:01:04]} 14. Ne5 {[%emt 0:02:05]} Nxe5 {[%emt 0:01:02]} 15. dxe5 {[%emt 0:00:05]} Qc7 {[%emt 0:00:10]} 16. O-O-O {[%emt 0:05:19]} O-O-O {[%emt 0:02:18]} 17. Rd4 {[%emt 0:23:50]} Bc6 {[%emt 0:05:18]} 18. Bd3 {[%emt 0:01:27]} Kb8 {[%emt 0:05:11]} 19. Rg1 {[%emt 0:02:41]} Nc8 {[%emt 0:01:10]} 20. Rb4 {[%emt 0:01:57]} Ne7 {[%emt 0:03:58]} 21. Ne2 {[%emt 0:00:58]} Ka8 {[%emt 0:00:53]} 22. Nd4 {[%emt 0:01:05]} Bd7 {[%emt 0:01:23]} 23. Kb1 {[%emt 0:02:29]} Nc6 {[%emt 0:12:21]} 24. Nxc6 {[%emt 0:00:22]} Bxc6 {[%emt 0:00:07]} 25. Rg3 {[%emt 0:01:42]} Rdf8 {[%emt 0:02:18]} 26. Rb6 {[%emt 0:02:45]} d4 {[%emt 0:09:51]} 27. Qxd4 {[%emt 0:00:09]} Rd8 {[%emt 0:00:05]} 28. Qe3 {[%emt 0:02:47]} Rd5 {[%emt 0:01:57]} 29. f4 {[%emt 0:01:02]} Rhd8 {[%emt 0:00:17]} 30. Rb4 {[%emt 0:00:36]} Qd7 {[%emt 0:01:12]} 31. Qb6 {[%emt 0:01:59]} Rd4 {[%emt 0:03:03]} 32. Be2 {[%emt 0:01:16]} Rd1+ {[%emt 0:02:55]} 33. Bxd1 {[%emt 0:00:21]} Qxd1+ {[%emt 0:00:18]} 34. Ka2 {[%emt 0:00:01]} Bd5+ {[%emt 0:00:20]} 35. c4 {[%emt 0:01:49]} Be4 {[%emt 0:00:49]} 36. Rg1 {[%emt 0:00:21]} Qd2 {[%emt 0:00:27]} 37. Re1 {[%emt 0:00:56]} Bc6 {[%emt 0:00:42]} 38. Qe3 {[%emt 0:04:38]} Qxe3 {[%emt 0:00:21]} 39. Rxe3 {[%emt 0:00:03]} a5 {[%emt 0:00:09]} 40. Rbb3 {[%emt 0:00:32]} Rd4 {[%emt 0:00:08]} 41. Rbc3 {[%emt 0:02:18]} a4 {[%emt 0:00:17]} 42. b4 {[%emt 0:00:23]} axb3+ {[%emt 0:00:08]} 43. Kxb3 {[%emt 0:00:02]} Rxf4 {[%emt 0:00:19]} 44. h5 {[%emt 0:00:15]} Kb8 {[%emt 0:02:42]} 45. Rcd3 {[%emt 0:01:32]} Kc7 {[%emt 0:00:16]} 46. Kc3 {[%emt 0:00:48]} Rf5 {[%emt 0:00:58]} 47. g6 {[%emt 0:00:02]} fxg6 {[%emt 0:00:18]} 48. hxg6 {[%emt 0:00:03]} hxg6 {[%emt 0:04:39]} 49. Rd6 {[%emt 0:00:18]} Bd7 {[%emt 0:00:10]} 50. a4 {[%emt 0:00:34]} g5 {[%emt 0:01:12]} 51. a5 {[%emt 0:00:07]} Bc8 {[%emt 0:03:48]} 52. Kd4 {[%emt 0:00:07]} g4 {[%emt 0:02:46]} 53. a6 {[%emt 0:01:07]} bxa6 {[%emt 0:00:12]} 54. Kc5 {[%emt 0:00:27]} Bd7 {[%emt 0:02:13]} 55. Rxa6 {[%emt 0:00:14]} 1-0

[Event "Panchenko Memorial 2019"]
[Site "Chelyabinsk"]
[Date "2019.09.14"]
[Round "6.6"]
[White "Nesterov, Arseniy"]
[Black "Remizov, Yaroslav"]
[Result "1-0"]
[ECO "D30"]
[WhiteElo "2473"]
[BlackElo "2354"]
[Annotator "ChessBase"]
[PlyCount "85"]
[EventDate "2019.09.09"]
[EventType "swiss"]
[EventCountry "RUS"]
[SourceTitle "playchess.com"]
[Source "ChessBase"]
[SourceQuality "1"]
[TimeControl "5400+30"]

1. d4 {[%emt 0:00:00]} d5 {[%emt 0:00:00]} 2. c4 {[%emt 0:00:00]} e6 {[%emt 0:00:00]} 3. Nf3 {[%emt 0:00:00]} c6 {[%emt 0:00:02]} 4. g3 {[%emt 0:00:02]} dxc4 {[%emt 0:04:41]} 5. Bg2 {[%emt 0:00:54]} b5 {[%emt 0:00:59]} 6. O-O {[%emt 0:00:41]} Bb7 {[%emt 0:03:22]} 7. Ne5 {[%emt 0:00:24]} Nd7 {[%emt 0:06:07]} 8. Nc3 {[%emt 0:02:49]} a6 {[%emt 0:29:03]} 9. Nxc6 {[%emt 0:12:22]} Qc8 {[%emt 0:11:04]} 10. d5 {[%emt 0:01:22]} b4 {[%emt 0:02:17]} 11. Na5 {[%emt 0:08:54]} bxc3 {[%emt 0:10:10]} 12. Nxb7 {[%emt 0:00:08]} Rb8 {[%emt 0:01:45]} 13. dxe6 {[%emt 0:02:40]} fxe6 {[%emt 0:00:10]} 14. bxc3 {[%emt 0:13:27]} Rxb7 {[%emt 0:00:12]} 15. Bxb7 {[%emt 0:00:04]} Qxb7 {[%emt 0:00:02]} 16. Qa4 {[%emt 0:00:06]} Qb5 {[%emt 0:09:59]} 17. Qxb5 {[%emt 0:00:16]} axb5 {[%emt 0:00:03]} 18. Rb1 {[%emt 0:03:03]} Ngf6 {[%emt 0:00:34]} 19. Rxb5 {[%emt 0:01:54]} Bd6 {[%emt 0:00:06]} 20. Rd1 {[%emt 0:03:30]} Ke7 {[%emt 0:00:47]} 21. Rb7 {[%emt 0:01:14]} Ra8 {[%emt 0:03:54]} 22. Bg5 {[%emt 0:00:44]} Rxa2 {[%emt 0:04:38]} 23. Bxf6+ {[%emt 0:01:23]} gxf6 {[%emt 0:00:09]} 24. Rd4 {[%emt 0:00:06]} e5 {[%emt 0:02:05]} 25. Rxc4 {[%emt 0:01:44]} Rxe2 {[%emt 0:00:31]} 26. Rc8 {[%emt 0:08:40]} Rd2 {[%emt 0:03:15]} 27. Kf1 {[%emt 0:06:12]} Ke6 {[%emt 0:01:11]} 28. Re8+ {[%emt 0:00:29]} Be7 {[%emt 0:00:06]} 29. c4 {[%emt 0:01:05]} Rc2 {[%emt 0:04:31]} 30. Rc7 {[%emt 0:01:56]} e4 {[%emt 0:00:13]} 31. h4 {[%emt 0:01:39]} f5 {[%emt 0:00:58]} 32. h5 {[%emt 0:00:57]} Kd6 {[%emt 0:02:18]} 33. Ra7 {[%emt 0:00:36]} Bf6 {[%emt 0:00:40]} 34. Ra5 {[%emt 0:02:45]} Nc5 {[%emt 0:00:33]} 35. Rf8 {[%emt 0:00:08]} Bd4 {[%emt 0:00:30]} 36. Rd8+ {[%emt 0:00:12]} Ke6 {[%emt 0:00:31]} 37. Rxd4 {[%emt 0:00:07]} Nd3 {[%emt 0:00:05]} 38. Ra6+ {[%emt 0:02:28]} Ke7 {[%emt 0:00:03]} 39. Rd5 {[%emt 0:00:38]} Rxf2+ {[%emt 0:00:38]} 40. Kg1 {[%emt 0:00:00]} Rf3 {[%emt 0:01:15]} 41. Rb5 {[%emt 0:00:12]} Kd7 {[%emt 0:00:10]} 42. Rb7+ {[%emt 0:00:13]} Kc8 {[%emt 0:00:10]} 43. Rg7 {[%emt 0:00:05]} 1-0